fUSD/lending_fUSD_20260127
["ID","MTS","AMOUNT","RATE_DAILY","PERIOD"]
[403723918,1769508690835,-800.0,0.0004324,13]
[403723919,1769508690846,-800.0,0.0004324,13]
[403723920,1769508690858,-800.0,0.0004324,13]
[403723921,1769508690869,-800.0,0.0004324,13]
[403723922,1769508690879,-800.0,0.0004324,13]
[403723923,1769508690889,-800.0,0.0004324,13]
[403723924,1769508690899,-800.0,0.0004324,13]
[403723925,1769508690910,-800.0,0.0004324,13]
[403723926,1769508690920,-800.0,0.0004324,13]
[403723927,1769508690931,-800.0,0.0004324,13]
[403723928,1769508690941,-800.0,0.0004324,13]
[403723929,1769508690951,-800.0,0.0004324,13]
[403723930,1769508690962,-800.0,0.0004324,13]
[403723931,1769508690971,-800.0,0.0004324,13]
[403723932,1769508690981,-800.0,0.0004324,13]
[403723933,1769508690991,-632.0,0.0004324,13]
[403723934,1769508691001,-800.0,0.0004324,13]
[403723935,1769508691012,-800.0,0.0004324,13]
[403723936,1769508691023,-800.0,0.0004324,13]
[403723937,1769508691034,-800.0,0.0004324,13]
[403723938,1769508691044,-169.44904283,0.00043284,105]
[403723939,1769508691055,-1000.0,0.00043288,30]
[403723940,1769508691065,-217.03005109,0.00043298,120]
[403723941,1769508691075,-218.58873504,0.00043298,120]
[403723942,1769508691085,-151.0,0.000433,120]
[403723943,1769508691095,-150.0,0.000433,120]
[403723944,1769508691104,-500.0,0.000433,30]
[403723945,1769508691114,-500.0,0.000433,30]
[403723946,1769508691124,-500.0,0.000433,30]
[403723947,1769508691133,-500.0,0.000433,30]
[403723948,1769508691143,-500.0,0.000433,30]
[403723949,1769508691153,-500.0,0.000433,30]
[403723950,1769508691163,-500.0,0.000433,30]
[403723951,1769508691173,-500.0,0.000433,30]
[403723952,1769508691186,-500.0,0.000433,30]
[403723953,1769508691196,-500.0,0.000433,30]
[403723954,1769508691206,-500.0,0.000433,30]
[403723955,1769508691216,-500.0,0.000433,30]
[403723956,1769508691226,-500.0,0.000433,30]
[403723957,1769508691236,-500.0,0.000433,30]
[403723958,1769508691246,-500.0,0.000433,30]
[403723959,1769508691255,-500.0,0.000433,30]
[403723960,1769508691265,-500.0,0.000433,30]
[403723961,1769508691275,-500.0,0.000433,30]
[403723962,1769508691284,-500.0,0.000433,30]
[403723963,1769508691294,-500.0,0.000433,30]
[403723964,1769508691304,-500.0,0.000433,30]
[403723965,1769508691313,-500.0,0.000433,30]
[403723966,1769508691323,-500.0,0.000433,30]
[403723967,1769508691332,-500.0,0.000433,30]
[403723968,1769508691342,-500.0,0.000433,30]
[403723969,1769508691351,-500.0,0.000433,30]
[403723970,1769508691361,-407.7,0.000433,30]
[403723971,1769508691371,-725.32085997,0.00043331,7]
[403723972,1769508691381,-48000.0,0.00043331,40]
[403723973,1769508691391,-50000.0,0.00043331,41]
[403723974,1769508691400,-339.4526008,0.00043332,30]
[403723975,1769508691410,-339.4526008,0.00043332,30]
[403723976,1769508691419,-2854.57765679,0.00043332,30]
[403723977,1769508691429,-2854.57765679,0.00043332,30]
[403723978,1769508691438,-16083.23994447,0.00043332,30]
[403723979,1769508691448,-16083.23994447,0.00043332,30]
[403723980,1769508691458,-16083.23994447,0.00043332,30]
[403723981,1769508691468,-16083.23994447,0.00043332,30]
[403723982,1769508691479,-908.42804262,0.00043332,31]
[403723983,1769508691489,-63235234.0977405,0.00043332,10]
[403723984,1769508691498,-1127310.16559383,0.00043332,10]
[403723985,1769508691508,-2234390.87532937,0.00043332,10]
[403723986,1769508691518,-2871.26406535,0.00043332,7]
[403723987,1769508691528,-2853.91097945,0.00043332,2]
[403723988,1769508691540,-1099.70333082,0.00043332,7]
[403723989,1769508691553,-5048872.42937566,0.00043332,10]
[403723990,1769508692626,-280.67999746,0.00038356,120]
[403723991,1769508692642,-204.43412054,0.00038356,120]
[403723992,1769508692651,-214.809834,0.00038356,120]
[403723993,1769508692660,-631.63650658,0.00038356,14]
[403723994,1769508692671,-2822.65653568,0.00038356,14]
[403723995,1769508692682,-1200.0,0.00038356,14]
[403723996,1769508693133,-200.0,0.00020384,2]
[403723997,1769508693143,-500.0,0.00020384,2]
[403723998,1769508693152,-500.0,0.00020384,2]
[403723999,1769508693162,-500.0,0.00020439,2]
[403724000,1769508693171,-500.0,0.00020439,2]
[403724001,1769508693183,-500.0,0.00020494,2]
[403724002,1769508693192,-500.0,0.00020494,2]
[403724003,1769508693201,-583.0189425,0.00033919,2]
[403724004,1769508693214,-30.2110575,0.00033919,2]
[403724005,1769508693223,-484.83,0.00036795,2]
[403724006,1769508693233,-515.35157707,0.00038356,14]
[403724007,1769508693250,-205.40520946,0.00038256,2]
[403724008,1769508693260,-233.24999267,0.00038356,14]
[403724009,1769508693269,-2655.14497,0.00038356,120]
[403724010,1769508693278,-485.114113,0.00038356,120]
[403724011,1769508693288,-214.809834,0.00038356,120]
[403724012,1769508693297,-5402.894612,0.00038356,14]
[403724013,1769508693306,-2655.14497,0.00038356,120]
[403724014,1769508693315,-214.809834,0.00038356,120]
[403724015,1769508693324,-4129.50864891,0.00038356,14]
[403724016,1769508693336,-1273.38596309,0.00038356,14]
[403724017,1769508693345,-477.957889,0.00038356,120]
[403724018,1769508693354,-2655.14497,0.00038356,120]
[403724019,1769508693363,-214.809834,0.00038356,120]
[403724020,1769508693372,-477.957889,0.00038356,120]
[403724021,1769508693381,-5377.32761356,0.00038356,14]
[403724022,1769508693396,-25.56699844,0.00038356,14]
[403724023,1769508693406,-2384.77131769,0.00038356,120]
[403724024,1769508693419,-270.37366031,0.00038356,120]
[403724025,1769508693428,-5402.894612,0.00038356,14]
[403724026,1769508693438,-477.957889,0.00038356,120]
[403724027,1769508693447,-214.809841,0.00038356,120]
[403724028,1769508693456,-5402.894612,0.00038356,14]
[403724029,1769508693465,-477.957889,0.00038356,120]
[403724030,1769508693475,-5402.894612,0.00038356,14]
[403724031,1769508693484,-477.957889,0.00038356,120]
[403724032,1769508693492,-5402.894612,0.00038356,14]
[403724033,1769508693501,-477.957889,0.00038356,120]
[403724034,1769508693511,-5402.894612,0.00038356,14]
[403724035,1769508693520,-477.957889,0.00038356,120]
[403724036,1769508693530,-477.957881,0.00038356,120]
[403724037,1769508693539,-5402.894612,0.00038356,14]
[403724038,1769508693549,-47899.09915937,0.00043332,10]
[403724050,1769508974435,153.13,0.000153,2]
[403724051,1769508991889,10000.0,0.00021,30]
[403724128,1769509046682,10000.0,0.000153,2]
[403724142,1769509398561,200.0,0.00015178,2]
[403724149,1769509525102,1028.67373226,0.000108,2]
[403724219,1769509831593,-1028.25764269,0.00016356,2]
[403724221,1769509831605,-393.65989265,0.00016356,2]
[403724223,1769509831616,-1377.69079332,0.00016356,2]
[403724225,1769509831628,-2548.08515034,0.00016356,2]
[403724227,1769509831637,-786.67705371,0.000164,2]
[403724228,1769509831649,-2612.65972033,0.000164,2]
[403724229,1769509831658,-800.75751054,0.00016438,2]
[403724230,1769509831667,-256.4804188,0.00016599,2]
[403724231,1769509831703,-43.5195812,0.00016599,2]
[403724232,1769509831713,-279.07363268,0.00016599,2]
[403724233,1769509831758,-920.92636732,0.00016599,2]
[403724234,1769509831767,-360.47742724,0.000166,2]
[403724235,1769509831778,-333.49645524,0.000166,2]
[403724236,1769509831787,-5878.79406657,0.000166,2]
[403724237,1769509831798,-949.42540431,0.000166,2]
[403724238,1769509831808,-670.12048165,0.000166,2]
[403724239,1769509831818,-786.68,0.00016652,3]
[403724240,1769509831828,-1050.88046111,0.00016661,5]
[403724241,1769509831837,-1050.88046112,0.00016661,5]
[403724242,1769509831847,-150.0,0.00016661,2]
[403724243,1769509831855,-1000000.0,0.00016662,2]
[403724244,1769509831865,-311.3305775,0.000167,2]
[403724245,1769509831874,-500.0,0.00016759,2]
[403724246,1769509831883,-500.0,0.00016759,2]
[403724247,1769509831892,-5.01074997,0.00016759,2]
[403724248,1769509831904,-494.98925003,0.00016759,2]
[403724249,1769509831914,-500.0,0.00016759,2]
[403724250,1769509831924,-500.0,0.00016759,2]
[403724251,1769509831934,-500.0,0.00016759,2]
[403724252,1769509831944,-500.0,0.00016759,2]
[403724253,1769509831954,-500.0,0.00016759,2]
[403724254,1769509831964,-500.0,0.00016759,2]
[403724255,1769509831974,-500.0,0.00016759,2]
[403724257,1769509831984,-500.0,0.00016759,2]
[403724259,1769509831993,-500.0,0.00016759,2]
[403724261,1769509832002,-551.35383629,0.00016759,2]
[403724263,1769509832012,-500.0,0.00016759,2]
[403724265,1769509832021,-500.0,0.00016759,2]
[403724267,1769509832030,-500.0,0.00016759,2]
[403724269,1769509832040,-500.0,0.00016759,2]
[403724271,1769509832049,-500.0,0.00016759,2]
[403724273,1769509832059,-500.0,0.00016759,2]
[403724275,1769509832068,-500.0,0.00016759,2]
[403724277,1769509832077,-500.0,0.00016759,2]
[403724279,1769509832086,-500.0,0.00016759,2]
[403724281,1769509832096,-500.0,0.00016759,2]
[403724282,1769509832105,-500.0,0.00016759,2]
[403724283,1769509832114,-500.0,0.00016759,2]
[403724284,1769509832124,-500.0,0.00016759,2]
[403724285,1769509832135,-500.0,0.00016759,2]
[403724286,1769509832150,-500.0,0.00016759,2]
[403724287,1769509832160,-500.0,0.00016759,2]
[403724288,1769509832170,-500.0,0.00016759,2]
[403724289,1769509832179,-500.0,0.00016759,2]
[403724290,1769509832189,-500.0,0.00016759,2]
[403724291,1769509832199,-500.0,0.00016759,2]
[403724292,1769509832209,-500.0,0.00016759,2]
[403724293,1769509832218,-52.79763765,0.00016759,2]
[403724294,1769509832231,-447.20236235,0.00016759,2]
[403724295,1769509832241,-500.0,0.00016759,2]
[403724296,1769509832251,-500.0,0.00016759,2]
[403724297,1769509832261,-405.8256799,0.00016759,2]
[403724298,1769509832271,-500.0,0.00016759,2]
[403724299,1769509832281,-500.0,0.00016759,2]
[403724300,1769509832290,-2500.0,0.00016762,2]
[403724301,1769509832299,-450.1833,0.00016762,2]
[403724302,1769509832309,-1395.773,0.00016762,2]
[403724303,1769509832319,-174.363,0.00016762,2]
[403724304,1769509832329,-263.0,0.00016853,2]
[403724305,1769509832338,-212.42195731,0.00016861,2]
[403724306,1769509832347,-182.23441398,0.00016861,2]
[403724307,1769509832357,-500.0,0.00016861,2]
[403724308,1769509832366,-608.88840444,0.00016861,2]
[403724309,1769509832375,-1050.88046112,0.00016861,5]
[403724310,1769509832384,-500.0,0.00016861,2]
[403724311,1769509832393,-300.51963234,0.00016861,2]
[403724312,1769509832402,-1910.99,0.00016861,2]
[403724313,1769509832411,-1910.99,0.00016861,2]
[403724314,1769509832420,-1910.99,0.00016861,2]
[403724315,1769509832429,-484.89309552,0.00016861,2]
[403724316,1769509832441,-1426.09690448,0.00016861,2]
[403724317,1769509832450,-171.75067881,0.000169,2]
[403724318,1769509832459,-359.30500297,0.00017,2]
[403724319,1769509832471,-9640.69499703,0.00017,2]
[403724320,1769509832481,-417.73581155,0.00017,2]
[403724321,1769509832490,-320.0,0.00017055,2]
[403724322,1769509832499,-274.41839663,0.00017252,2]
[403724323,1769509832509,-333.49645522,0.00017272,2]
[403724324,1769509832518,-333.49645522,0.00017943,2]
[403724325,1769509832527,-156.25012135,0.00017943,2]
[403724326,1769509832537,-6127.90688283,0.00018,2]
[403724327,1769509832548,-1403.3982886,0.00018,2]
[403724328,1769509832559,-501.01040161,0.00018,2]
[403724329,1769509832571,-1967.68442696,0.00018,2]
[403724330,1769509832579,-9247.63450812,0.00018,2]
[403724331,1769509832591,-260.03248731,0.00018,2]
[403724333,1769509837964,-3682.50484801,0.00018,2]
[403724334,1769509838098,-10877.56040666,0.00018,2]
[403724335,1769509838110,-504.0,0.00018,2]
[403724336,1769509838122,-5684.7064599,0.00018,2]
[403724337,1769509838136,-54954.76736946,0.00018,2]
[403724338,1769509838147,-294874.92485949,0.00018,2]
[403724339,1769509838168,-542.46609112,0.00018,2]
[403724340,1769509838181,-20898.77871055,0.00018,2]
[403724516,1769509840148,-2318675.48184965,0.00018,2]
[403724538,1769509840371,-2534.14765577,0.00018,2]
[403724540,1769509840384,-725.91164319,0.00018,2]
[403724545,1769509840428,-660368.64876118,0.00018,2]
[403724547,1769509840439,-193.0,0.00018082,2]
[403724549,1769509840449,-300.0,0.00018082,2]
[403724551,1769509840459,-200.0,0.00018082,2]
[403724553,1769509840470,-250.0,0.00018082,2]
[403724555,1769509840480,-150.0,0.00018546,2]
[403724557,1769509840490,-670.1204816,0.00018692,2]
[403724559,1769509840500,-949.42540427,0.00018904,2]
[403724561,1769509840510,-10000.0,0.00019,2]
[403724563,1769509840520,-500.0,0.00019178,2]
[403724565,1769509840529,-550.0,0.00019178,2]
[403724567,1769509840539,-500.0,0.00019178,2]
[403724569,1769509840549,-538.04890175,0.00019178,2]
[403724571,1769509840559,-504.0,0.00019265,3]
[403724573,1769509840569,-10000.0,0.0002,2]
[403724575,1769509840579,-5878.7940665,0.00020404,2]
[403724577,1769509840589,-504.0,0.00020531,4]
[403724579,1769509840598,-670.1204816,0.00020784,2]
[403724581,1769509840609,-157.33,0.00021,7]
[403724583,1769509840618,-10000.0,0.00021,2]
[403724585,1769509840628,-949.42540427,0.00021207,2]
[403724587,1769509840642,-504.0,0.00021796,5]
[403724590,1769509840653,-5000.0,0.00021918,2]
[403724592,1769509840664,-500.0,0.00021973,2]
[403724594,1769509840674,-10539.7554586,0.00022,2]
[403724596,1769509840686,-670.1204816,0.00022876,2]
[403724598,1769509840696,-504.0,0.00023061,6]
[403724600,1769509840707,-949.42540427,0.00023511,2]
[403724630,1769509841015,-154.7,0.000237,7]
[403724634,1769509841047,-5878.7940665,0.00024208,2]
[403724635,1769509841058,-504.0,0.00024327,7]
[403724637,1769509841067,-597.95309583,0.00024658,2]
[403724639,1769509841079,-1910.99,0.00024899,2]
[403724641,1769509841091,-382452.972271,0.000249,3]
[403724643,1769509841101,-670.1204816,0.00024968,2]
[403724645,1769509841112,-1102.0,0.00025007,2]
[403724647,1769509841122,-312.0,0.00025083,2]
[403724649,1769509841134,-504.0,0.00025592,9]
[403724651,1769509841145,-312.0,0.00025625,2]
[403724654,1769509841157,-312.0,0.00025798,2]
[403724656,1769509841168,-317.0,0.00025799,2]
[403724657,1769509841181,-949.42540427,0.00025815,2]
[403724659,1769509841193,-317.0,0.00025897,7]
[403724661,1769509841203,-312.0,0.00025922,2]
[403724663,1769509841213,-312.0,0.00025926,2]
[403724665,1769509841223,-312.0,0.0002593,2]
[403724666,1769509841234,-312.0,0.0002604,2]
[403724667,1769509841246,-312.0,0.00026259,2]
[403724668,1769509841256,-312.0,0.00026319,2]
[403724669,1769509841267,-1102.0,0.00026323,2]
[403724670,1769509841282,-317.0,0.00026447,2]
[403724671,1769509841292,-312.0,0.00026452,2]
[403724672,1769509841303,-312.0,0.00026475,2]
[403724673,1769509841313,-615.0,0.00026527,2]
[403724674,1769509841324,-312.0,0.00026619,2]
[403724675,1769509841334,-166.66,0.00026627,30]
[403724676,1769509841345,-312.0,0.00026688,2]
[403724677,1769509841356,-312.0,0.00026725,2]
[403724678,1769509841367,-504.0,0.00026857,10]
[403724679,1769509841378,-312.0,0.00026878,2]
[403724680,1769509841389,-312.0,0.00026915,2]
[403724681,1769509841399,-312.0,0.00027055,7]
[403724683,1769509841410,-670.1204816,0.00027059,2]
[403724685,1769509841421,-312.0,0.00027184,2]
[403724687,1769509841430,-166.66,0.00027188,30]
[403724688,1769509841440,-312.0,0.00027311,2]
[403724690,1769509841450,-317.0,0.00027496,2]
[403724693,1769509841462,-312.0,0.00027526,2]
[403724695,1769509841472,-312.0,0.00027572,2]
[403724697,1769509841482,-302.0,0.000277,2]
[403724699,1769509841492,-1102.0,0.00027708,5]
[403724701,1769509841502,-166.66,0.00027748,30]
[403724703,1769509841512,-5878.7940665,0.00028012,2]
[403724704,1769509841522,-949.42540427,0.00028118,2]
[403724706,1769509841533,-504.0,0.00028122,11]
[403724708,1769509841543,-166.66,0.00028309,30]
[403724710,1769509841553,-6736.0,0.00028644,5]
[403724712,1769509841563,-166.66,0.00028869,30]
[403724714,1769509841573,-472.0,0.000291,14]
[403724716,1769509841582,-670.1204816,0.00029151,2]
[403724718,1769509841592,-1102.0,0.00029167,5]
[403724720,1769509841604,-504.0,0.00029388,12]
[403724722,1769509841620,-166.66,0.0002943,30]
[403724724,1769509841631,-615.0,0.00029527,2]
[403724726,1769509841643,-515.97121128,0.0003013,2]
[403724727,1769509841656,-949.42540427,0.00030422,2]
[403724730,1769509841668,-156.25012135,0.00030586,2]
[403724732,1769509841680,-1102.0,0.00030625,5]
[403724733,1769509841691,-504.0,0.00030653,13]
[403724735,1769509841700,-307.0,0.000314,2]
[403724737,1769509841710,-202.0,0.000314,2]
[403724739,1769509841720,-5878.7940665,0.00031816,2]
[403724741,1769509841730,-504.0,0.00031918,15]
[403724743,1769509841744,-1102.0,0.00032156,5]
[403724745,1769509841754,-615.0,0.00032527,2]
[403724747,1769509841763,-949.42540427,0.00032726,2]
[403724749,1769509841776,-504.0,0.00033184,16]
[403724751,1769509841786,-201.86,0.000332,2]
[403724753,1769509841796,-2000.0,0.000337,2]
[403724755,1769509841809,-152.46,0.00033728,2]
[403724757,1769509841818,-1102.0,0.00033764,5]
[403724759,1769509841828,-270.3,0.00034259,10]
[403724761,1769509841838,-504.0,0.00034449,17]
[403724763,1769509841847,-157.16,0.000346,14]
[403724765,1769509841859,-158.0,0.000346,14]
[403724767,1769509841870,-210.0,0.0003488,30]
[403724769,1769509841880,-949.42540427,0.00035029,2]
[403724771,1769509841891,-1102.0,0.00035452,5]
[403724773,1769509841901,-797.0,0.00035616,30]
[403724775,1769509841911,-5878.7940665,0.0003562,2]
[403724777,1769509841921,-201.86,0.000357,2]
[403724779,1769509841931,-504.0,0.00035714,18]
[403724781,1769509841942,-210.0,0.0003689,30]
[403724783,1769509841952,-504.0,0.0003698,19]
[403724785,1769509841961,-393.33,0.00037,30]
[403724787,1769509841972,-277.72,0.00037096,2]
[403724789,1769509841981,-949.42540427,0.00037333,2]
[403724791,1769509841991,-2000.0,0.000374,2]
[403724793,1769509842001,-166.66,0.00037433,2]
[403724795,1769509842011,-250.0,0.00038,45]
[403724797,1769509842021,-250.0,0.00038,45]
[403724800,1769509842031,-250.0,0.00038,45]
[403724801,1769509842041,-250.0,0.00038,45]
[403724803,1769509842052,-250.0,0.00038,45]
[403724805,1769509842063,-1000.0,0.00038,120]
[403724807,1769509842073,-504.0,0.00038245,20]
[403724809,1769509842084,-200.0,0.0003835,120]
[403724812,1769509842095,-1910.99,0.00038355,2]
[403724814,1769509842105,-10000.0,0.00038356,14]
[403724815,1769509842118,-201.86,0.000384,30]
[403724818,1769509842128,-250.0,0.000385,45]
[403724820,1769509842139,-250.0,0.000385,45]
[403724821,1769509842149,-250.0,0.000385,45]
[403724823,1769509842159,-250.0,0.000385,45]
[403724825,1769509842169,-250.0,0.000385,45]
[403724827,1769509842178,-150.0,0.0003861,30]
[403724829,1769509842191,-150.0,0.0003861,30]
[403724831,1769509842201,-166.66,0.00038668,2]
[403724833,1769509842213,-154.7,0.000388,14]
[403724835,1769509842223,-210.0,0.0003891,30]
[403724837,1769509842233,-277.72,0.0003895,2]
[403724839,1769509842243,-250.0,0.00039,45]
[403724841,1769509842253,-157.16,0.00039,14]
[403724843,1769509842262,-158.0,0.00039,14]
[403724845,1769509842271,-250.0,0.00039,45]
[403724847,1769509842282,-250.0,0.00039,45]
[403724848,1769509842292,-250.0,0.00039,45]
[403724850,1769509842302,-250.0,0.00039,45]
[403724852,1769509842312,-500.0,0.00039297,30]
[403724854,1769509842322,-5878.7940665,0.00039424,2]
[403724856,1769509842331,-250.0,0.000395,45]
[403724858,1769509842341,-250.0,0.000395,45]
[403724860,1769509842351,-250.0,0.000395,45]
[403724862,1769509842361,-250.0,0.000395,45]
[403724864,1769509842370,-504.0,0.0003951,22]
[403724866,1769509842380,-288.68407899,0.000399,2]
[403724868,1769509842390,-778.86477401,0.000399,2]
[403724870,1769509842399,-201.86,0.000399,30]
[403724872,1769509842409,-166.66,0.00039904,2]
[403724874,1769509842418,-250.0,0.0004,45]
[403724876,1769509842427,-250.0,0.0004,45]
[403724878,1769509842437,-250.0,0.0004,45]
[403724880,1769509842448,-250.0,0.0004,45]
[403724882,1769509842458,-806.01509448,0.0004,3]
[403724884,1769509842468,-1395.773,0.00040071,56]
[403724886,1769509842477,-500.0,0.000405,45]
[403724888,1769509842486,-250.0,0.000405,45]
[403724890,1769509842495,-250.0,0.000405,45]
[403724892,1769509842504,-250.0,0.000405,45]
[403724894,1769509842513,-1361.2,0.00040713,120]
[403724896,1769509842523,-504.0,0.00040776,23]
[403724898,1769509842533,-277.72,0.00040805,2]
[403724900,1769509842542,-210.0,0.0004093,30]
[403724902,1769509842551,-500.0,0.00041,45]
[403724904,1769509842560,-250.0,0.00041,45]
[403724906,1769509842569,-250.0,0.00041,45]
[403724908,1769509842578,-250.0,0.00041,45]
[403724910,1769509842587,-2104.65,0.00041,60]
[403724912,1769509842596,-2000.0,0.000411,2]
[403724914,1769509842605,-166.66,0.0004114,2]
[403724916,1769509842614,-1361.2,0.00041168,120]
[403724918,1769509842624,-200.0,0.00041273,6]
[403724920,1769509842633,-1069.25827792,0.0004133,7]
[403724922,1769509842643,-154.7,0.000415,14]
[403724925,1769509842653,-500.0,0.000415,45]
[403724928,1769509842662,-500.0,0.000415,45]
[403724930,1769509842671,-225.0,0.000415,120]
[403724932,1769509842681,-250.0,0.000415,45]
[403724934,1769509842694,-250.0,0.000415,45]
[403724936,1769509842703,-1361.2,0.00041624,120]
[403724938,1769509842713,-500.0,0.00041688,60]
[403724940,1769509842724,-500.0,0.00041688,60]
[403724942,1769509842736,-500.0,0.00041688,60]
[403724944,1769509842749,-157.16,0.000418,14]
[403724946,1769509842758,-158.0,0.000418,14]
[403724948,1769509842767,-4119.41592062,0.00042032,7]
[403724950,1769509842777,-504.0,0.00042041,24]
[403724952,1769509842787,-500.0,0.00042236,60]
[403724955,1769509842796,-166.66,0.00042375,2]
[403724957,1769509842805,-200.0,0.00042465,120]
[403724960,1769509842814,-277.72,0.0004266,2]
[403724963,1769509842827,-1000.0,0.0004274,30]
[403724966,1769509842836,-500.0,0.00042784,60]
[403724969,1769509842846,-500.0,0.00042784,60]
[403724972,1769509842855,-500.0,0.00042784,60]
[403724975,1769509842864,-300.27182,0.00042786,113]
[403724978,1769509842873,-500.0,0.00042795,60]
[403724981,1769509842883,-150.0,0.00042795,60]
[403724983,1769509842892,-150.0,0.00042795,60]
[403724985,1769509842901,-150.0,0.00042795,60]
[403724987,1769509842910,-500.0,0.00042795,60]
[403724989,1769509842919,-500.0,0.00042795,60]
[403724991,1769509842929,-150.0,0.00042795,2]
[403724993,1769509842938,-150.0,0.00042795,60]
[403724995,1769509842947,-150.0,0.00042795,60]
[403724997,1769509842956,-150.0,0.00042795,60]
[403724999,1769509842966,-150.0,0.00042795,60]
[403725001,1769509842976,-150.0,0.00042795,2]
[403725003,1769509842985,-150.0,0.00042795,60]
[403725005,1769509842994,-444.0,0.00042795,60]
[403725007,1769509843004,-150.0,0.00042795,60]
[403725008,1769509843013,-500.0,0.0004285,60]
[403725011,1769509843023,-150.0,0.0004285,60]
[403725012,1769509843032,-150.0,0.0004285,60]
[403725014,1769509843041,-150.0,0.0004285,60]
[403725016,1769509843050,-500.0,0.0004285,60]
[403725018,1769509843060,-500.0,0.0004285,60]
[403725020,1769509843069,-150.0,0.0004285,2]
[403725022,1769509843078,-150.0,0.0004285,60]
[403725024,1769509843087,-150.0,0.0004285,60]
[403725026,1769509843097,-150.0,0.0004285,60]
[403725028,1769509843106,-150.0,0.0004285,60]
[403725030,1769509843115,-150.0,0.0004285,60]
[403725032,1769509843126,-444.0,0.0004285,60]
[403725034,1769509843135,-150.0,0.0004285,60]
[403725036,1769509843145,-200.0,0.00042899,120]
[403725038,1769509843154,-241.81132,0.000429,120]
[403725040,1769509843163,-150.0,0.00042905,60]
[403725042,1769509843173,-150.0,0.00042905,60]
[403725044,1769509843182,-150.0,0.00042905,60]
[403725046,1769509843192,-200.0,0.00042905,60]
[403725048,1769509843201,-500.0,0.00042905,60]
[403725050,1769509843210,-300.0,0.00042905,60]
[403725052,1769509843219,-150.0,0.00042905,2]
[403725053,1769509843229,-150.0,0.00042905,60]
[403725055,1769509843238,-200.0,0.00042905,60]
[403725057,1769509843248,-201.38355661,0.00042905,60]
[403725059,1769509843257,-200.0,0.00042905,60]
[403725061,1769509843267,-150.0,0.00042905,60]
[403725063,1769509843276,-444.0,0.00042905,60]
[403725065,1769509843286,-150.0,0.00042905,60]
[403725067,1769509843295,-210.0,0.0004295,30]
[403725069,1769509843305,-150.0,0.00042959,60]
[403725071,1769509843314,-150.0,0.00042959,60]
[403725073,1769509843324,-500.0,0.00042959,60]
[403725075,1769509843334,-150.0,0.00042959,2]
[403725077,1769509843344,-178.26751797,0.00042959,60]
[403725080,1769509843354,-150.0,0.00042959,60]
[403725082,1769509843363,-150.0,0.00042959,60]
[403725084,1769509843373,-444.0,0.00042959,60]
[403725085,1769509843382,-214.0,0.00043,7]
[403725087,1769509843391,-2000.0,0.00043,120]
[403725089,1769509843400,-150.0,0.00043001,120]
[403725091,1769509843409,-176.71443276,0.00043001,120]
[403725093,1769509843420,-1000.0,0.00043014,30]
[403725095,1769509843429,-150.0,0.00043014,60]
[403725097,1769509843439,-150.0,0.00043014,60]